Cogmind - Beta 15 @@@ ROGUE MODE // 2025.07.17 @ 09:51:29 Player: beans Result: Destroyed by H-55 Commando with Assault Rifle Performance ------------- Evolutions (2) 1000 Regions Visited (5) 1000 Robots Destroyed (37) 185 Value Destroyed (821) 821 Prototype IDs (25) 500 Alien Tech Used (0) 0 Bonus (360) 360 TOTAL SCORE: 3866 Bonus ------- Follower Combat Kills 60 Aligned with FarCom 300 Cogmind --------- Core Integrity 0/550 Matter 201/300 Energy 99/100 System Corruption 0% Temperature Cool (0) Movement Core (50) Location -8/Materials Parts ------- > --- POWER (2) -------- (None) > --- PROPULSION (2) --- (None) > --- UTILITY (5) ------ Improved Signal Interpreter Targeting Computer Targeting Computer > --- WEAPON (2) ------- Heavy Mace > --- INVENTORY (5) ---- Thief Drone Bay (3/3) Peak State ------------ > --- POWER ------------ Light Nuclear Core > --- PROPULSION ------- Light Treads > --- UTILITY ---------- Experimental Sensor Array Improved Signal Interpreter Targeting Computer Targeting Computer Cloak of Protection > --- WEAPON ----------- Advanced Assault Cannon Advanced Assault Cannon > --- INVENTORY -------- Thief Drone Bay Advanced Assault Cannon Advanced Assault Cannon Concussive RPG Heavy Mace [Rating: 36] Favorites ----------- Power Light Nuclear Core Engine Ion Engine Power Core Light Nuclear Core Propulsion Light Treads Treads Light Treads Utility Targeting Computer Device Thief Drone Bay Processor Targeting Computer Weapon Medium Laser Energy Gun Medium Laser Ballistic Gun Minigun Ballistic Cannon Advanced Assault Cannon Launcher Concussive RPG Impact Weapon Heavy Mace Build | -11 -10 -10 -10 -9 -8 ------- Run | Yrd Mat Min Exi Min Mat Slots Evolved 4 | . . . . . 4 Power 1 | . . . . . 1 Propulsion . | . . . . . . Utility 3 | . . . . . 3 Weapon . | . . . . . . Parts Attached 27 | 5 2 3 . . 17 Power 3 | 1 . 2 . . . Engine 2 | 1 . 1 . . . Core 1 | . . 1 . . . Reactor . | . . . . . . Propulsion 3 | 2 . . . . 1 Treads 3 | 2 . . . . 1 Leg . | . . . . . . Wheel . | . . . . . . Hover . | . . . . . . Flight . | . . . . . . Utility 8 | . 2 1 . . 5 Device 3 | . . 1 . . 2 Storage . | . . . . . . Processor 5 | . 2 . . . 3 Hackware . | . . . . . . Protection . | . . . . . . Artifact . | . . . . . . Weapon 13 | 2 . . . . 11 Energy Gun 2 | 2 . . . . . Energy Cannon . | . . . . . . Ballistic Gun 1 | . . . . . 1 Ballistic Cannon 5 | . . . . . 5 Launcher 4 | . . . . . 4 Special Weapon . | . . . . . . Impact Weapon 1 | . . . . . 1 Slashing Weapon . | . . . . . . Piercing Weapon . | . . . . . . Special Melee Weapon . | . . . . . . Unidentified Prototypes 2 | . . 1 . . 1 Parts Lost 11 | . . 1 . . 10 Power 2 | . . 1 . . 1 Propulsion 2 | . . . . . 2 Utility 3 | . . . . . 3 Weapon 4 | . . . . . 4 Highest Loss Streak 7 | . . 1 . . 7 To Critical Strikes 1 | . . . . . 1 Average Backups 4 | . . 4 5 5 4 Power . | . . . . . . Propulsion . | . . 1 1 1 . Utility 2 | . . 2 3 4 2 Weapon . | . . . . . 1 Tool/Special . | . . . . . . Unused Backups 5 | . . 1 1 . 3 Power . | . . . . . . Propulsion 3 | . . 1 . . 2 Utility . | . . . . . . Weapon 2 | . . . 1 . 1 Tool/Special . | . . . . . . Average Slot Usage (%) 83 | . 84 99 100 100 64 Engine 3 | . 14 12 . . . Core 8 | . . . 14 14 8 Treads 19 | . 28 28 28 28 8 Device 11 | . . 11 14 14 11 Processor 16 | . 12 16 14 14 18 Energy Gun 18 | . 28 28 28 28 5 Ballistic Cannon 3 | . . . . . 8 Peak Build Rating 36 | 5 7 16 17 17 36 Average Rating 17 | 3 5 12 16 17 23 On Entrance 10 | . 5 7 16 17 17 Naked Turns . | . . . . . . Heaviest Build 26 | 8 8 12 12 12 26 Greatest Support 40 | 40 40 40 40 40 40 Greatest Overweight (x) 8 | . . . . . 8 Average Overweight (x) . | . . . . . 1 Largest Inventory Capacity 5 | 5 5 5 5 5 5 Average Capacity 5 | 5 5 5 5 5 5 Most Carried 5 | 5 2 5 5 5 5 Average Carried 4 | . . 4 4 5 4 Final Capacity 5 | 5 5 5 5 5 5 Final Carried 5 | . 2 5 5 5 1 Class Distribution -------------------- 98% | Mutant Dominant Class ---------------- Mutant | -10/Materials Mutant | -10/Mines Mutant | -10/Exiles Mutant | -9/Mines Mutant | -8/Materials Resources | -11 -10 -10 -10 -9 -8 ----------- Run | Yrd Mat Min Exi Min Mat Matter Collected 906 | 178 92 20 . 10 606 Remotely . | . . . . . . Salvage Created 1026 | 13 161 . . 69 783 Parts 66 | 2 12 . . 5 47 Haulers Intercepted 2 | . 1 . . . 1 Recyclers Shooed 3 | . . 1 . . 2 Parts Field Recycled . | . . . . . . Retrieved Matter . | . . . . . . Parts Self-Destructed . | . . . . . . Prevented . | . . . . . . Kills | -11 -10 -10 -10 -9 -8 ------- Run | Yrd Mat Min Exi Min Mat Combat Hostiles Destroyed 20 | . 4 . . 4 12 Melee 2 | . . . . . 2 Guns 9 | . 4 . . 4 1 Cannons 9 | . . . . . 9 Classes Destroyed 10 | 1 4 . . . 5 Builder 6 | . 1 . . . 5 Tunneler 3 | 1 . . . . 2 Hauler 2 | . 1 . . . 1 Recycler 4 | . . . . . 4 Watcher 2 | . . . . . 2 Swarmer 7 | . 3 . . 4 . Grunt 7 | . 1 . . . 6 Sentry 4 | . . . . . 4 Hunter 1 | . . . . . 1 Heavy 1 | . . . . . 1 Best Kill Streak 6 | 1 5 . . 3 6 Combat Bots Only 3 | . 3 . . 3 2 Max Kills in Single Turn 1 | 1 1 . . 1 1 Gunslinging . | . . . . . . Exploded . | . . . . . . Melee 1 | . . . . . 1 Uniques/NPCs Destroyed . | . . . . . . Combat | -11 -10 -10 -10 -9 -8 -------- Run | Yrd Mat Min Exi Min Mat Hostile Shots Fired 214 | . 37 21 . 19 137 Missed 62 | . 13 6 . 4 39 Hits 152 | . 24 15 . 15 98 Projectile 152 | . 24 15 . 15 98 Critical Strikes 9 | . . 1 . . 8 Damage Taken 2285 | . 213 128 . 130 1814 Core 648 | . 55 31 . 9 553 Absorbed by Shields . | . . . . . . Core Remaining (%) 81 | 100 . . . 62 . Volleys Fired 115 | 2 19 5 . 9 80 Largest 2 | 2 2 2 . 2 2 Hottest 90 | 90 90 90 . 90 90 Shots Fired 199 | 4 33 10 . 18 134 Gun 105 | 4 33 10 . 18 40 Cannon 90 | . . . . . 90 Launcher 4 | . . . . . 4 Special . | . . . . . . Kinetic 92 | . . . . . 92 Thermal 103 | 4 33 10 . 18 38 Explosive 4 | . . . . . 4 Electromagnetic . | . . . . . . Robot Hit Streak 21 | 1 12 6 . 9 21 Robot Miss Streak 4 | 1 2 2 . 2 4 Penetration Max . | . . . . . . Secondary Targets 1 | . . . . 1 . Max Gunslinging Chain 1 | . . . . 1 . Shots Hit Robots 122 | 2 22 7 . 13 78 Core Hits 51 | 1 8 3 . 5 34 Critical Kills . | . . . . . . Critical Parts Destroyed 2 | . . . . . 2 Critical Strikes 10 | . . 2 . 1 7 Burn 3 | . . 2 . 1 . Blast 4 | . . . . . 4 Smash 3 | . . . . . 3 Melee Attacks 7 | . . . . . 7 Impact 7 | . . . . . 7 Slashing . | . . . . . . Piercing . | . . . . . . Sneak Attacks 1 | . . . . . 1 Combat Hostiles . | . . . . . . Follow-up Attacks . | . . . . . . Damage Inflicted 2752 | 26 268 83 . 152 2223 Guns 632 | 26 268 83 . 152 103 Cannons 1708 | . . . . . 1708 Explosions 158 | . . . . . 158 Melee 254 | . . . . . 254 Ramming . | . . . . . . Kinetic 1683 | . . . . . 1683 Thermal 616 | 26 268 83 . 152 87 Explosive 158 | . . . . . 158 Electromagnetic . | . . . . . . Impact 295 | . . . . . 295 Slashing . | . . . . . . Piercing . | . . . . . . Highest Corruption . | . . . . . . Average Corruption . | . . . . . . Corruption Purged . | . . . . . . Corruption Blocked . | . . . . . . Overload Shots . | . . . . . . Overflow Damage 126 | . . . . . 126 Projectiles 25 | . . . . . 25 Explosions . | . . . . . . Melee 101 | . . . . . 101 Knockbacks 12 | . . . . . 12 Impact . | . . . . . . Kinetic 11 | . . . . . 11 Secondary 1 | . . . . . 1 Self-Inflicted Damage 28 | . . . . . 28 Shots 1 | . . . . . 1 Rammed . | . . . . . . Targets Rammed . | . . . . . . Kicked . | . . . . . . Crushed . | . . . . . . Highest Temperature 338 | 60 338 57 . 180 216 Average Temperature 66 | 36 139 26 . 64 43 Received Heat Transfer 735 | . 42 18 . . 675 Effects 2 | . 2 . . . . Energy Bleed 1 | . 1 . . . . Damage (minor) 1 | . 1 . . . . Siege Activations . | . . . . . . Martial Activations . | . . . . . . Shielding Activations . | . . . . . . Robots Disrupted . | . . . . . . Combat Hostiles . | . . . . . . Robots Corrupted . | . . . . . . Combat Hostiles . | . . . . . . Parts Fried 2 | . . . . . 2 Impact Corruptions 5 | . . . . . 5 Robots Melted . | . . . . . . Combat Hostiles . | . . . . . . Parts Melted 1 | . 1 . . . . Heat Transferred 1858 | 74 719 371 . 471 223 Parts Sabotaged . | . . . . . . Parts Stolen . | . . . . . . Parts Stripped . | . . . . . . Power Chain Reactions . | . . . . . . Alert | -11 -10 -10 -10 -9 -8 ------- Run | Yrd Mat Min Exi Min Mat Maximum Alert Level . | . . . . . . Low Security (%) 100 | 100 100 100 . 100 100 Level 1 . | . . . . . . Level 2 . | . . . . . . Level 3 . | . . . . . . Level 4 . | . . . . . . Level 5 . | . . . . . . High Security . | . . . . . . Max Security . | . . . . . . Peak Influence 138 | 5 76 77 . 138 114 Initial 20 | . 3 20 . . 4 Average 23 | . 20 20 . 71 15 Influence Increases 896 | 5 103 160 . 183 445 Destroy 0b10 Robot/C 520 | . 80 80 . 120 240 Destroy 0b10 Robot/NC 85 | 5 10 . . . 70 Destroy Leader 108 | . 12 10 . 10 76 Allied During Kill 19 | . . 10 . 8 1 Disable Machine 15 | . . . . . 15 Destroy Structure 44 | . 1 . . . 43 Lose Combat Pursuer 105 | . . 60 . 45 . Influence Decreases 786 | . 55 192 21 170 348 Entered New Map 65 | . 2 33 21 . 9 Time Decay 644 | . 53 158 . 170 263 Lost Part 77 | . . 1 . . 76 Squads Dispatched 3 | . . . . . 3 Investigation 1 | . . . . . 1 Extermination . | . . . . . . Reinforcement 2 | . . . . . 2 Assault . | . . . . . . Garrison . | . . . . . . Intercept . | . . . . . . Searches Triggered . | . . . . . . Construction Impeded 1 | . . . . . 1 Haulers Reinforced . | . . . . . . Active Scanning Responses . | . . . . . . Cargo Convoy Interrupts . | . . . . . . Stealth | -11 -10 -10 -10 -9 -8 --------- Run | Yrd Mat Min Exi Min Mat Distress Signals 1 | . . . . . 1 Communications Jammed . | . . . . . . Distress Signals . | . . . . . . Times Spotted 46 | . 10 8 . 7 21 Peak Tracking Total 5 | . 4 3 . 4 5 Tactical Retreats 5 | . . 3 . 2 . Traps | -11 -10 -10 -10 -9 -8 ------- Run | Yrd Mat Min Exi Min Mat Traps Triggered . | . . . . . . Indirectly . | . . . . . . Trap Hack Attempts . | . . . . . . Triggered . | . . . . . . Disarmed . | . . . . . . Reprogrammed . | . . . . . . Reused . | . . . . . . Traps Extracted . | . . . . . . Installed . | . . . . . . Triggered . | . . . . . . Machines | -11 -10 -10 -10 -9 -8 ---------- Run | Yrd Mat Min Exi Min Mat Machines Disabled 1 | . . . . . 1 Max in Single Turn 1 | . . . . . 1 Machines Repaired . | . . . . . . Machines Dismantled . | . . . . . . Machines Sabotaged . | . . . . . . Overloaded Fab Kills . | . . . . . . Hacking | -11 -10 -10 -10 -9 -8 --------- Run | Yrd Mat Min Exi Min Mat Machines Accessed 4 | . 1 1 1 . 1 Terminals 1 | . 1 . . . . Fabricators . | . . . . . . Repair Stations . | . . . . . . Recycling Units . | . . . . . . Scanalyzers 1 | . . . . . 1 Garrison Access . | . . . . . . Total Hacks 7 | . 2 1 1 . 3 Successful 3 | . . 1 1 . 1 Failed 4 | . 2 . . . 2 Catastrophic . | . . . . . . Database Lockouts . | . . . . . . Manual 1 | . . . 1 . . Terminals 2 | . 2 . . . . Fabricators . | . . . . . . Repair Stations . | . . . . . . Recycling Units . | . . . . . . Scanalyzers 3 | . . . . . 3 Garrison Access . | . . . . . . Terminal Hacks 2 | . . 1 1 . . Open Door 1 | . . 1 . . . Proto ID Catalog 1 | . . . 1 . . Fabricator Hacks . | . . . . . . Repair Station Hacks . | . . . . . . Recycling Unit Hacks . | . . . . . . Scanalyzer 1 | . . . . . 1 Insert Component 1 | . . . . . 1 Garrison Access Hacks . | . . . . . . Unauthorized Hacks . | . . . . . . Terminals . | . . . . . . Fabricators . | . . . . . . Repair Stations . | . . . . . . Recycling Units . | . . . . . . Scanalyzers . | . . . . . . Garrison Access . | . . . . . . Data Cores Recovered . | . . . . . . Used . | . . . . . . Hacking Detections 2 | . 1 . . . 1 Full Trace Events 1 | . . . . . 1 Feedback Events . | . . . . . . Feedback Blocked . | . . . . . . Robot Schematics Acquired . | . . . . . . Robots Built . | . . . . . . Authchips . | . . . . . . Time . | . . . . . . Total Robot Build Rating . | . . . . . . Part Schematics Acquired . | . . . . . . Parts Built . | . . . . . . Authchips . | . . . . . . Time . | . . . . . . Total Part Build Rating . | . . . . . . Parts Repaired . | . . . . . . Time . | . . . . . . Parts Recycled . | . . . . . . Recycled Matter . | . . . . . . Retrieved Matter . | . . . . . . Retrieved Components . | . . . . . . Parts Scanalyzed . | . . . . . . Part Schematics Acquired . | . . . . . . Parts Damaged . | . . . . . . Bothacking | -11 -10 -10 -10 -9 -8 ------------ Run | Yrd Mat Min Exi Min Mat Used RIF Installer . | . . . . . . Robots Hacked . | . . . . . . Non-combat . | . . . . . . Combat . | . . . . . . Robot Hacks Applied . | . . . . . . Relay Couplers Released . | . . . . . . Fabnet Peak Effective % . | . . . . . . Robots Rewired . | . . . . . . Allies Hacked . | . . . . . . Hacks Repelled . | . . . . . . Allies | -11 -10 -10 -10 -9 -8 -------- Run | Yrd Mat Min Exi Min Mat Total Allies . | . . . . . . Largest Group . | . . . . . . Highest-Rated Group . | . . . . . . Highest-Rated Ally . | . . . . . . Total Orders 13 | . . 4 2 3 4 ROAM 1 | . . . 1 . . EXPLORE 5 | . . 2 . 1 2 RETURN 7 | . . 2 1 2 2 Ally Attacks 54 | . . 33 . 12 9 Total Damage 209 | . . 103 . 55 51 Kills 6 | . . 4 . 2 . Allies Corrupted . | . . . . . . Allies Melted . | . . . . . . Intel | -11 -10 -10 -10 -9 -8 ------- Run | Yrd Mat Min Exi Min Mat Active Infowar (turns) 148 | . . . . . 148 Sensors 93 | . . . . . 93 Cloaking 56 | . . . . . 56 Robot Analysis Total . | . . . . . . Derelict Logs Recovered 1 | . . . . 1 . Drone Launches 21 | . . 9 3 3 6 Drone Recoveries 21 | . . 9 3 3 6 Exploration | -11 -10 -10 -10 -9 -8 ------------- Run | Yrd Mat Min Exi Min Mat Turns Passed 3215 | 58 287 513 652 345 1360 Spaces Moved 1341 | 41 144 249 260 165 482 Core 98 | 20 . . . . 78 Treads 1243 | 21 144 249 260 165 404 Legs . | . . . . . . Wheels . | . . . . . . Hover . | . . . . . . Flight . | . . . . . . Fastest Speed 50 | 50 160 160 160 160 50 Average Speed 174 | 106 160 160 160 160 205 Slowest Speed 450 | 160 160 160 160 160 450 Overloaded Moves . | . . . . . . Propulsion Burnouts . | . . . . . . Robots Hopped . | . . . . . . Potential Cave-ins . | . . . . . . Cave-ins Triggered . | . . . . . . Exploration Rate (%) 41 | 3 23 50 93 40 37 Regions Visited 5 Branch Regions 3 Pre-discovered Areas . | . . . . . . Known Exits Taken . | . . . . . . Unknown Exits Taken 5 | 1 1 1 1 1 . Scrap Searched 4 | . . 2 . 2 . Spaces Dug 6 | . . . . . 6 Terrain Destroyed 45 | . . . . . 45 Melee 1 | . . . . . 1 Projectile 21 | . . . . . 21 AOE 23 | . . . . . 23 Terrain Rammed . | . . . . . . Walls Destroyed . | . . . . . . Machines Disabled . | . . . . . . Actions | -11 -10 -10 -10 -9 -8 --------- Run | Yrd Mat Min Exi Min Mat Total 2009 | 52 168 355 497 228 709 Wait 482 | . . 94 236 55 97 Move 1336 | 40 143 248 259 164 482 Hop . | . . . . . . Pick Up 21 | 5 4 2 1 . 9 Fast Attach 7 | . . 1 . . 6 Attach 21 | 5 2 1 . . 13 Detach 4 | . . . . . 4 Swap 4 | . . 1 . . 3 Drop 12 | . . 3 1 . 8 Fire 115 | 2 19 5 . 9 80 Melee 7 | . . . . . 7 Ram . | . . . . . . Kick . | . . . . . . Crush . | . . . . . . Escape Stasis . | . . . . . . Rewire . | . . . . . . Trap . | . . . . . . Miscellaneous . | . . . . . . Route ------- -11/Scrapyard -10/Materials -10/Mines -10/Exiles (discovered 2 exits: [*Min x2]) -9/Mines -8/Materials History --------- Turn | Location | Event 15 | -11/Scrapyard | Discovered new exit (range 15) 59 | -11/Scrapyard | Entered Materials 308 | -10/Materials | Discovered new exit (range 13) 311 | -10/Materials | Build established: Mutant 346 | -10/Materials | Entered Mines 424 | -10/Mines | Found the Drone Emporium 442 | -10/Mines | Found Prototype Device 444 | -10/Mines | Identified Thief Drone Bay 598 | -10/Mines | Found a damaged Exp. Sensor Array with a note attached 740 | -10/Mines | Found Prototype Device 851 | -10/Mines | Deemed a non-threat by the Exiles lab entrance 851 | -10/Mines | Discovered new exit (range 5) 859 | -10/Mines | Entered Exiles 885 | -10/Exiles | Discovered new exit (range 15) 906 | -10/Exiles | Met 8R-AWN 935 | -10/Exiles | Met EX-HEX 981 | -10/Exiles | Met EX-BIN 1003 | -10/Exiles | Aligned with FarCom system 1005 | -10/Exiles | Given EX-Vault access code 1083 | -10/Exiles | Opened EX-Vault 1095 | -10/Exiles | Found Cloak of Protection 1125 | -10/Exiles | Warned to stay clear of 0b10 Research branches 1417 | -10/Exiles | Met EX-DEC 1495 | -10/Exiles | Discovered new exit (range 11) 1511 | -10/Exiles | Left Exiles lab with Cloak of Protection 1511 | -10/Exiles | Entered Mines 1533 | -9/Mines | Discovered new exit (range 50) 1542 | -9/Mines | Met a Derelict bent on vengeance 1753 | -9/Mines | Assembled infested the area 1758 | -9/Mines | Assisted by a Guerilla fighting off Assembled 1761 | -9/Mines | Learned Materials security intel 1856 | -9/Mines | Entered Materials 1856 | -8/Materials | Evolved 4 slots: Power x1, Utility x3 1856 | -8/Materials | Identified Exp. Sensor Array 3166 | -8/Materials | Core integrity fell below 50% 3203 | -8/Materials | Core integrity fell below 20% 3206 | -8/Materials | Lost 7 parts (1p2u4w) 3216 | -8/Materials | Destroyed by H-55 Commando with Assault Rifle Last Messages --------------- Y-45 Defender suffers critical hit (Smash). Destroyed Lgt. Treads. Y-45 Defender system corrupted by crushing effect. U-05 Engineer builds a Wall. Y-45 Defender destroyed. U-05 Engineer lays Concrete. Acquired 44 matter. Sneak attack on U-05 Engineer. U-05 Engineer suffers critical hit (Smash). Destroyed Wheel. Destroyed Welding Torch. Destroyed Terrain Scan Processor. U-05 Engineer system corrupted by crushing effect. Wheel fried. Lgt. Ion Engine fried. U-05 Engineer destroyed. U-05 Engineer lays Concrete. Acquired 11 matter. Map ----- +----------------------------------------------------+ | ?????????????????????????????????????????????????? | | ?????????????????????????????????????????????????? | | ?????????????????????????????????????????????????? | | ?????????????????????????????????????????????????? | | ?????????????????????????????????????????????????? | | ?????????????????????????????????????????????????? | | ?????????????????????????????????????????????????? | | ?????????????????????????????????????????????????? | | ?????????????????????????????????????????????????? | | ?????????????????????????????????????????????????? | | ??????????????????????? ?????????????????????????? | | ??????????????????????? ####?????????????????????? | | ??????????????????????#h ?????????????????????? | | ??????????????????????? ?????????????????????? | | ??????????????????????? g% ?????????????????????? | | ???????????????????????% % ?????????????????????? | | ??????????????????????? g%= ?????????????????????? | | ???????????????????????# #?????????????????????? | | ???????????????????????# #?????????????????????? | | ???????????????????????# =#?????????????????????? | | ???????????????????????# !%+?????????????????????? | | ???????????????????????# =#?????????????????????? | | ???????????????????????# #????????###??????????? | | ?????????????????####### #??????#####??????????? | | ?????????????????? # %!#??????###[######?????? | | ??????????????????""" #%@ #??????#% * #?????? | | ??????????????????"""" # ####??## =#?????? | | ??????????????????"""" ; u #### #?????? | | ??????????????????"""" # * % #?????? | | ??????????????w???""" # % ! #?????? | | ???????????????? ag = % #?????? | | ?????????????? ### ## #?????? | | ??????????????################# #?????? | | ??????????????# #??????# = #?????? | | ??????????????# #??????# =# ###+####?????? | | ??????????????# #??????###%###?# #????????? | | ??????????????# #??????### ##### #????????? | | ??????????????# #??????# | ### ###??????? | | ??????????????# #??????# #???????? | | ??????????????# #??????# #???????? | | ##########????# #??????# %% #???????? | | ! #????# #??????# ##% ######??? | | #????#####+################## # #### | | """ "" #???????# + + # # | | """ """ #???????# ##### "" # # # / | | """ =S" #???????#^^^#???# """"" # # # | | """ """ #???????#^^^#???# """"" # # # | | """ """ #???????# #???# """"" # %" # | | #???????# #???# """ #% %+ % # | | #####+############ #???# # # # | +----------------------------------------------------+ Best States ------------- Heat Dissipation 31 Energy Generation 14 Energy Capacity 250 Matter Stores 300 Matter Capacity 300 Sight Range 16 Robot Scan Range 20 Terrain Scan Density 10 Cloak Strength 5 Evasion (%) 50 Targeting Accuracy 15 Recoil Reduction 2 Item Schematics ----------------- None Robot Schematics ------------------ None Fabricated ------------ Nothing Repaired ---------- Nothing Alien Tech Used ----------------- None Achievements -------------- None Challenges ------------ None Game ------ Seed AnalysisGunSuite Manual? 0 Play Time 00:25:20 Cumulative 56.6 hours Start 2025.07.17 @ 08:50:59 End 2025.07.17 @ 09:51:29 Sessions 1 Manual Loads 0 Difficulty Rogue Special Mode None Game No. 246 Rogue 246 Adventurer 0 Explorer 0 Win Type - Total 0 Types 0/0/0/0/0/0/0/0/0/0 Lore% 37 Gallery% 29 Achievement% 24 Wizard Run 0 Options --------- Layout 2 ASCII 0 Keyboard 0 Movement Mouse Keybinds 0 Fullscreen 1 Font 24/Smallcaps Map View 50x44 Zoom Use 0% Tactical HUD 0 Map Filters NONE Filters NONE Steam 1 RUN: 5f4d6547-3823-421b-93a2-35ecc20f8ec3